Cogmind - Beta 13 @@@ ROGUE MODE // 2024.04.10 @ 18:56:11 Player: Bace Troncons Result: Destroyed by G-47 Trooper with Particle Gun Performance ------------- Evolutions (2) 1000 Regions Visited (4) 800 Robots Destroyed (44) 220 Value Destroyed (1302) 1302 Prototype IDs (8) 160 Alien Tech Used (0) 0 Bonus (0) 0 TOTAL SCORE: 3482 Bonus ------- None Cogmind --------- Core Integrity 0/550 Matter 300/300 Energy 300/300 System Corruption 1% Temperature Cool (9) Movement Walking (190) Ox1 Location -8/Storage Parts ------- > --- POWER (2) -------- Nuclear Core Light Nuclear Core > --- PROPULSION (2) --- Carbon-fiber Leg > --- UTILITY (5) ------ Heat Sink Targeting Computer Hacking Suite > --- WEAPON (2) ------- Beam Rifle > --- INVENTORY (5) ---- Aluminum Leg Targeting Computer Drone Bay (2/2) Drone Bay (2/2) Peak State ------------ > --- POWER ------------ (None) > --- PROPULSION ------- Flight Unit Improved VTOL Module > --- UTILITY ---------- Hacking Suite Drone Bay Drone Bay Drone Bay Drone Bay > --- WEAPON ----------- Enhanced Autogun > --- INVENTORY -------- (None) [Rating: 32] Favorites ----------- Power Light Nuclear Core Engine Reinforced Ion Engine Power Core Light Nuclear Core Propulsion Improved Treads Treads Improved Treads Leg Aluminum Leg Wheel Wheel Flight Unit Improved VTOL Module Utility Targeting Computer Device ECM Suite Storage Small Storage Unit Processor Targeting Computer Hackware Hacking Suite Weapon Spread Laser Energy Gun Spread Laser Energy Cannon Advanced Beam Cannon Ballistic Gun Assault Rifle Ballistic Cannon Flak Cannon Special Melee Weapon Datajack Build | -11 -10 -9 -8 -8 ------- Run | Yrd Mat Mat Mat Sto Slots Evolved 4 | . . 2 2 . Power 1 | . . . 1 . Propulsion . | . . . . . Utility 3 | . . 2 1 . Weapon . | . . . . . Parts Attached 57 | 5 4 15 16 17 Power 11 | . 1 3 5 2 Engine 3 | . 1 2 . . Core 8 | . . 1 5 2 Reactor . | . . . . . Propulsion 10 | 2 . 3 2 3 Treads 2 | . . 2 . . Leg 3 | 2 . . . 1 Wheel 3 | . . 1 1 1 Hover . | . . . . . Flight 2 | . . . 1 1 Utility 22 | 1 2 5 5 9 Device 12 | . . 2 3 7 Storage 2 | 1 . . . 1 Processor 7 | . 2 3 1 1 Hackware 1 | . . . 1 . Protection . | . . . . . Artifact . | . . . . . Weapon 14 | 2 1 4 4 3 Energy Gun 4 | . 1 2 . 1 Energy Cannon 1 | . . . 1 . Ballistic Gun 5 | 2 . 1 . 2 Ballistic Cannon 2 | . . . 2 . Launcher . | . . . . . Special Weapon . | . . . . . Impact Weapon . | . . . . . Slashing Weapon . | . . . . . Piercing Weapon . | . . . . . Special Melee Weapon 2 | . . 1 1 . Unidentified Prototypes 1 | . . . . 1 Parts Lost 25 | . . 7 5 13 Power 3 | . . 1 1 1 Propulsion 7 | . . 2 2 3 Utility 9 | . . 1 1 7 Weapon 6 | . . 3 1 2 Highest Loss Streak 7 | . . 7 5 6 To Critical Strikes . | . . . . . Average Slot Usage (%) 83 | . 86 89 84 69 Engine 5 | . 9 7 4 . Core 6 | . . 3 10 9 Treads 7 | . . 12 9 . Leg 6 | . 28 2 . 4 Wheel 2 | . . 1 1 4 Flight 1 | . . . 2 4 Device 10 | . . 8 15 16 Storage 2 | . 10 . . 4 Processor 21 | . 8 34 23 2 Hackware 2 | . . . 1 9 Energy Gun 9 | . 1 17 6 4 Ballistic Gun 5 | . 26 . . 5 Ballistic Cannon 1 | . . . 5 . Special Melee Weapon 1 | . . 1 . 2 Naked Turns . | . . . . . Heaviest Build 32 | 9 12 18 29 32 Greatest Support 46 | 20 20 46 46 15 Greatest Overweight (x) 8 | . . 3 8 3 Average Overweight (x) . | . . . . . Largest Inventory Capacity 8 | 8 8 5 5 5 Average Capacity 5 | 7 7 5 5 5 Most Carried 5 | 4 5 5 5 5 Average Carried 3 | 1 1 4 3 2 Final Capacity 8 | 8 5 5 5 5 Final Carried 5 | 1 5 5 1 4 Class Distribution -------------------- 76% | Mutant 23% | Scavenger-Mutant Dominant Class ---------------- Mutant | -10/Materials Mutant | -9/Materials Mutant | -8/Materials Scavenger-Mutant | -8/Storage Resources | -11 -10 -9 -8 -8 ----------- Run | Yrd Mat Mat Mat Sto Matter Collected 1143 | 250 134 170 284 305 Remotely . | . . . . . Salvage Created 1608 | . 275 572 308 453 Parts 80 | . 16 34 10 20 Haulers Intercepted 1 | . . . . 1 Recyclers Shooed 1 | . . . 1 . Parts Field Recycled . | . . . . . Retrieved Matter . | . . . . . Parts Self-Destructed . | . . . . . Prevented . | . . . . . Kills | -11 -10 -9 -8 -8 ------- Run | Yrd Mat Mat Mat Sto Combat Hostiles Destroyed 33 | . 6 11 6 10 Guns 28 | . 6 11 1 10 Cannons 5 | . . . 5 . Classes Destroyed 8 | . 4 2 . 2 Worker 3 | . . 1 1 1 Hauler 1 | . . . . 1 Recycler 5 | . 1 2 2 . Watcher 2 | . 1 . 1 . Swarmer 6 | . 3 . . 3 Grunt 16 | . 3 5 5 3 Sentry 10 | . . 6 1 3 Hunter 1 | . . . . 1 Best Kill Streak 6 | . 3 4 3 6 Combat Bots Only 5 | . 3 3 2 5 Max Kills in Single Turn 1 | . 1 1 1 1 Gunslinging . | . . . . . Exploded . | . . . . . Melee . | . . . . . Uniques/NPCs Destroyed . | . . . . . Combat | -11 -10 -9 -8 -8 -------- Run | Yrd Mat Mat Mat Sto Hostile Shots Fired 345 | . 38 67 78 162 Missed 88 | . 7 24 16 41 Damage Taken 3433 | . 305 612 961 1555 Core 719 | . 71 91 202 355 Absorbed by Shields . | . . . . . Core Remaining (%) 82 | 100 71 77 . . Volleys Fired 132 | . 21 39 30 42 Largest 2 | . 2 2 2 2 Hottest 130 | . 40 130 130 81 Shots Fired 192 | . 42 50 53 47 Gun 153 | . 42 50 14 47 Cannon 39 | . . . 39 . Launcher . | . . . . . Special . | . . . . . Kinetic 110 | . 42 10 24 34 Thermal 78 | . . 36 29 13 Explosive . | . . . . . Electromagnetic 4 | . . 4 . . Robot Hit Streak 20 | . 6 17 20 8 Robot Miss Streak 6 | . 3 3 6 4 Penetration Max . | . . . . . Secondary Targets 1 | . 1 . . . Max Gunslinging Chain 1 | . 1 . . . Shots Hit Robots 151 | . 26 50 43 32 Core Hits 132 | . 13 59 42 18 Critical Kills 2 | . 2 . . . Critical Parts Destroyed . | . . . . . Critical Strikes 3 | . 2 . . 1 Burn 1 | . . . . 1 Destroy 2 | . 2 . . . Melee Attacks 4 | . . 4 . . Impact . | . . . . . Slashing . | . . . . . Piercing . | . . . . . Sneak Attacks . | . . . . . Combat Hostiles . | . . . . . Follow-up Attacks . | . . . . . Damage Inflicted 2383 | . 340 715 768 560 Guns 1814 | . 340 713 201 560 Cannons 567 | . . . 567 . Explosions . | . . . . . Melee . | . . . . . Ramming 2 | . . 2 . . Kinetic 1292 | . 340 108 401 443 Thermal 1039 | . . 555 367 117 Explosive . | . . . . . Electromagnetic 50 | . . 50 . . Impact . | . . . . . Slashing . | . . . . . Piercing . | . . . . . Highest Corruption 1 | . . . . 1 Average Corruption 1 | . . . . 1 Corruption Purged . | . . . . . Corruption Blocked . | . . . . . Effects 4 | . . . . 4 Matter Fused 2 | . . . . 2 Energy Discharges 1 | . . . . 1 Data Loss (minor) 1 | . . . . 1 Overload Shots . | . . . . . Overflow Damage . | . . . . . Projectiles . | . . . . . Explosions . | . . . . . Melee . | . . . . . Knockbacks 10 | . . . 10 . Impact . | . . . . . Kinetic 10 | . . . 10 . Secondary . | . . . . . Self-Inflicted Damage . | . . . . . Shots . | . . . . . Rammed 2 | . . 2 . . Targets Rammed 2 | . . 2 . . Kicked . | . . . . . Crushed . | . . . . . Highest Temperature 524 | . 2 456 524 46 Average Temperature 108 | . 2 103 133 16 Received Heat Transfer 1473 | . 84 219 576 594 Effects 13 | . . 4 9 . Shutdowns 2 | . . 1 1 . Energy Bleed 1 | . . . 1 . Interference 6 | . . 3 3 . Matter Decay 1 | . . . 1 . Short Circuit 1 | . . . 1 . Damage (major) 2 | . . . 2 . Siege Activations . | . . . . . Robots Corrupted . | . . . . . Combat Hostiles . | . . . . . Parts Fried 1 | . . 1 . . Impact Corruptions . | . . . . . Robots Melted . | . . . . . Combat Hostiles . | . . . . . Parts Melted 3 | . . 1 . 2 Heat Transferred 1591 | . . 680 541 370 Parts Sabotaged . | . . . . . Parts Stolen . | . . . . . Parts Stripped . | . . . . . Power Chain Reactions . | . . . . . Alert | -11 -10 -9 -8 -8 ------- Run | Yrd Mat Mat Mat Sto Peak Influence 230 | . 230 188 161 217 Initial 50 | . . 18 31 50 Average 73 | . 100 54 73 99 Maximum Alert Level 1 | . 1 . . 1 Low Security (%) 94 | 100 68 100 100 97 Level 1 5 | . 31 . . 2 Level 2 . | . . . . . Level 3 . | . . . . . Level 4 . | . . . . . Level 5 . | . . . . . High Security . | . . . . . Max Security . | . . . . . Squads Dispatched 10 | . 2 3 4 1 Investigation 4 | . . 2 1 1 Extermination . | . . . . . Reinforcement 6 | . 2 1 3 . Assault . | . . . . . Garrison . | . . . . . Intercept . | . . . . . Searches Triggered . | . . . . . Construction Impeded . | . . . . . Haulers Reinforced . | . . . . . Active Scanning Responses . | . . . . . Cargo Convoy Interrupts . | . . . . . Stealth | -11 -10 -9 -8 -8 --------- Run | Yrd Mat Mat Mat Sto Distress Signals 5 | . 2 2 1 . Communications Jammed . | . . . . . Distress Signals . | . . . . . Times Spotted 69 | . 12 27 14 16 Peak Tracking Total 8 | . 5 5 4 8 Tactical Retreats 9 | . . 7 1 1 Traps | -11 -10 -9 -8 -8 ------- Run | Yrd Mat Mat Mat Sto Traps Triggered 2 | . . 1 . 1 Indirectly . | . . . . . Trap Hack Attempts . | . . . . . Triggered . | . . . . . Disarmed . | . . . . . Reprogrammed 4 | . 4 . . . Reused . | . . . . . Traps Extracted . | . . . . . Installed . | . . . . . Triggered . | . . . . . Machines | -11 -10 -9 -8 -8 ---------- Run | Yrd Mat Mat Mat Sto Machines Disabled . | . . . . . Max in Single Turn . | . . . . . Machines Repaired . | . . . . . Machines Dismantled . | . . . . . Machines Sabotaged . | . . . . . Overloaded Fab Kills . | . . . . . Hacking | -11 -10 -9 -8 -8 --------- Run | Yrd Mat Mat Mat Sto Machines Accessed 15 | . 4 3 4 4 Terminals 11 | . 3 2 2 4 Fabricators . | . . . . . Repair Stations . | . . . . . Recycling Units 2 | . 1 . 1 . Scanalyzers 2 | . . 1 1 . Garrison Access . | . . . . . Total Hacks 45 | . 12 12 12 9 Successful 31 | . 8 9 8 6 Failed 14 | . 4 3 4 3 Catastrophic 3 | . . 1 2 . Database Lockouts . | . . . . . Manual 2 | . 1 1 . . Terminals 31 | . 10 7 5 9 Fabricators . | . . . . . Repair Stations . | . . . . . Recycling Units 5 | . 2 . 3 . Scanalyzers 9 | . . 5 4 . Garrison Access . | . . . . . Terminal Hacks 19 | . 6 5 2 6 Record 2 | . 1 1 . . Robot Analysis 1 | . . . . 1 Prototype ID Bank 4 | . 2 1 . 1 Open Door 2 | . . . . 2 Emergency Access Points 1 | . . 1 . . Unreport Threat 2 | . . 2 . . Reprogram Traps 1 | . 1 . . . Surveillance Status 1 | . . . . 1 Patrol Status 1 | . 1 . . . Transport Status 1 | . 1 . . . Registered Components 1 | . . . 1 . Zone Layout 2 | . . . 1 1 Fabricator Hacks . | . . . . . Repair Station Hacks . | . . . . . Recycling Unit Hacks 4 | . 2 . 2 . Recycle Component 1 | . . . 1 . Process 1 | . . . 1 . Report Inventory 1 | . 1 . . . Retrieve Components 1 | . 1 . . . Scanalyzer 8 | . . 4 4 . Insert Component 4 | . . 2 2 . Analyze 4 | . . 2 2 . Garrison Access Hacks . | . . . . . Unauthorized Hacks . | . . . . . Terminals . | . . . . . Fabricators . | . . . . . Repair Stations . | . . . . . Recycling Units . | . . . . . Scanalyzers . | . . . . . Garrison Access . | . . . . . Data Cores Recovered . | . . . . . Used . | . . . . . Hacking Detections 10 | . 3 2 3 2 Full Trace Events 4 | . . 1 2 1 Feedback Events . | . . . . . Feedback Blocked . | . . . . . Robot Schematics Acquired . | . . . . . Robots Built . | . . . . . Authchips . | . . . . . Time . | . . . . . Total Robot Build Rating . | . . . . . Part Schematics Acquired 4 | . . 2 2 . Parts Built . | . . . . . Authchips . | . . . . . Time . | . . . . . Total Part Build Rating . | . . . . . Parts Repaired . | . . . . . Time . | . . . . . Parts Recycled 1 | . . . 1 . Recycled Matter 182 | . . . 182 . Retrieved Matter . | . . . . . Retrieved Components 5 | . 5 . . . Parts Scanalyzed 4 | . . 2 2 . Part Schematics Acquired 4 | . . 2 2 . Parts Damaged . | . . . . . Bothacking | -11 -10 -9 -8 -8 ------------ Run | Yrd Mat Mat Mat Sto Used RIF Installer . | . . . . . Robots Hacked 3 | . . 3 . . Non-combat 1 | . . 1 . . Combat 2 | . . 2 . . Robot Hacks Applied 3 | . . 3 . . parse_system 3 | . . 3 . . Relay Couplers Released . | . . . . . Fabnet Peak Effective % . | . . . . . Robots Rewired . | . . . . . Allies Hacked . | . . . . . Hacks Repelled . | . . . . . Allies | -11 -10 -9 -8 -8 -------- Run | Yrd Mat Mat Mat Sto Total Allies . | . . . . . Largest Group . | . . . . . Highest-Rated Group . | . . . . . Highest-Rated Ally . | . . . . . Total Orders . | . . . . . Ally Attacks . | . . . . . Total Damage . | . . . . . Kills . | . . . . . Allies Corrupted . | . . . . . Allies Melted . | . . . . . Intel | -11 -10 -9 -8 -8 ------- Run | Yrd Mat Mat Mat Sto Robot Analysis Total 1 | . . . . 1 Derelict Logs Recovered . | . . . . . Drone Launches 17 | . . . . 17 Drone Recoveries 11 | . . . . 11 Exploration | -11 -10 -9 -8 -8 ------------- Run | Yrd Mat Mat Mat Sto Turns Passed 3017 | 66 433 1124 791 603 Spaces Moved 1843 | 48 267 679 466 383 Core 121 | 12 . 96 10 3 Treads 545 | . . 327 218 . Legs 498 | 36 267 74 . 121 Wheels 304 | . . 182 100 22 Hover . | . . . . . Flight 375 | . . . 138 237 Fastest Speed 34 | 50 120 50 35 34 Average Speed 126 | 102 120 133 129 121 Slowest Speed 450 | 120 120 200 450 260 Overloaded Moves . | . . . . . Propulsion Burnouts . | . . . . . Robots Hopped 2 | . . . . 2 Cave-ins Triggered . | . . . . . Exploration Rate (%) 32 | 3 50 35 31 43 Regions Visited 4 Branch Regions 1 Pre-discovered Areas . | . . . . . Known Exits Taken 2 | . 1 1 . . Unknown Exits Taken 2 | 1 . . 1 . Scrap Searched . | . . . . . Spaces Dug . | . . . . . Terrain Destroyed . | . . . . . Melee . | . . . . . Projectile . | . . . . . AOE . | . . . . . Terrain Rammed . | . . . . . Walls Destroyed . | . . . . . Machines Disabled . | . . . . . Actions | -11 -10 -9 -8 -8 --------- Run | Yrd Mat Mat Mat Sto Total 2355 | 67 338 851 611 488 Wait 208 | 1 37 85 62 23 Move 1835 | 47 266 678 465 379 Hop 2 | . . . . 2 Pick Up 71 | 10 8 18 15 20 Fast Attach . | . . . . . Attach 46 | 5 3 11 10 17 Detach 13 | . . 2 9 2 Swap 11 | . 1 4 6 . Drop 29 | 4 2 8 14 1 Fire 132 | . 21 39 30 42 Melee 4 | . . 4 . . Ram . | . . . . . Kick . | . . . . . Crush 2 | . . 2 . . Escape Stasis . | . . . . . Rewire 2 | . . . . 2 Trap . | . . . . . Miscellaneous . | . . . . . Route ------- -11/Scrapyard -10/Materials -9/Materials -8/Materials (discovered 2 exits: *Fac / *Sto) -8/Storage History --------- Turn | Location | Event 14 | -11/Scrapyard | Discovered new exit (range 14) 67 | -11/Scrapyard | Entered Materials 313 | -10/Materials | Build established: Mutant 474 | -10/Materials | Discovered new exit (range 16) 495 | -10/Materials | Identified exit to Materials 500 | -10/Materials | Entered another Materials area 500 | -9/Materials | Evolved 2 slots: Utility x2 702 | -9/Materials | Lost 7 parts (1p2n1u3w) 1504 | -9/Materials | Discovered new exit (range 4) 1507 | -9/Materials | Identified exit to Materials 1624 | -9/Materials | Entered another Materials area 1624 | -8/Materials | Evolved 2 slots: Power x1, Utility x1 2080 | -8/Materials | Lost 5 parts (1p2n1u1w) 2201 | -8/Materials | Discovered new exit (range 9) 2209 | -8/Materials | Identified exit to Factory 2350 | -8/Materials | Discovered new exit (range 4) 2415 | -8/Materials | Entered Storage 2570 | -8/Storage | Core integrity fell below 50% 2639 | -8/Storage | Core integrity fell below 20% 2683 | -8/Storage | Lost 5 allies 2701 | -8/Storage | Lost 6 parts (2n4u) 2991 | -8/Storage | Build established: Scavenger-Mutant 3018 | -8/Storage | Destroyed by G-47 Trooper with Particle Gun Last Messages --------------- 02942_ Drone destroyed. 02943_ Drone retrieved by Drone Bay. 02951_ U-05 Engineer builds a Door. 02952_ Attempting to rewire R-06 Scavenger. 02952_ R-06 Scavenger is broken beyond repair. 02953_ Attempting to rewire R-06 Scavenger. 02953_ R-06 Scavenger is broken beyond repair. 02960_ Drone retrieved by Drone Bay. 02963_ Enh. Autogun destroyed. 02965_ Drone Bay destroyed. 02981_ G-47 Trooper suffers critical hit (Burn). 02981_ Critical hit (Burn: +37). 02983_ Particle Gun melted. 02983_ Lgt. Nuclear Core melted. 02983_ G-47 Trooper destroyed. 02987_ Acquired Aluminum Leg. 03007_ Sml. Matter Pod destroyed. 03008_ Drone Bay destroyed. 03008_ Critical hit (Burn: +37). 03010_ Wheel destroyed. Map ----- +----------------------------------------------------+ | | | | | | | | | | | | | | | | | ?????????????????????????????????????????????????? | | ?????????????????????????????????????????????????? | | ?????????????????????????????????????????????????? | | ?????????????????????????????????????????????????? | | ?????????????????????????????????????????????????? | | ??????????????????????????????????????????????###? | | ??????????????????????????????????????######### #? | | ??????????????????????????????????????# """"" ## | | ????????????????????????????????????### """"" ## | | ????????????????????????????????????#"" """"" ## | | ????????????????????????????????????#"T ## | | ????????????????????????????????????#"" = [## | | ????????????????????????????????????### !%## | | ??????????????????????????????????????# ==+ | | ??????????????????????????????????????# # | | ?????????????##############################+##### | | ?????????? | | ?????????? a @ g | | ?????????? g % | | ?????????????+####+#####################+######### | | ????????????????????????????????????# ! #???? | | ????????????????????????????????????# #???? | | ????????????????????????????????????# #???? | | ????????????????????????????????????# ##### | | ????????????????????????????????????# [[/ | | ????????????????????????????????????# ##### | | ????????????????????????????????????# #???? | | ????????????????????????????????????# #???? | | ????????????????????????????????????# #???? | | ????????????????????????????????????##########???? | | ?????????????????????????????????????????????????? | | ?????????????????????????????????????????????#???? | | ?????????????????????????????????????????????#???? | | ?????????????????????????????????????????????#???? | | ?????????????????????????????????????????????#???? | | ?????????????????????????????????????????????#???? | | ?????????????????????????????????????????????#???? | | ?????????????????????????????????????????????#???? | | ?????????????????????????????????????????????#???? | | ?????????????????????????????????????????????#?### | | ??????????????????????????????????????????#+#### | | ??????????????????????????????????????? | +----------------------------------------------------+ Best States ------------- Heat Dissipation 41 Energy Generation 23 Energy Capacity 405 Matter Stores 350 Matter Capacity 350 Sight Range 18 Terrain Scan Range 16 Terrain Scan Density 10 ECM Strength 1 Evasion (%) 63 Targeting Accuracy 10 Recoil Reduction 2 Offensive Hacking 10 Item Schematics ----------------- Visual Processing Unit | -9/Materials | Scanalyzed ECM Suite | -9/Materials | Scanalyzed Beam Rifle | -8/Materials | Scanalyzed Terrain Scanner | -8/Materials | Scanalyzed Robot Schematics ------------------ None Fabricated ------------ Nothing Alien Tech Used ----------------- None Achievements -------------- Release The Drones! Challenges ------------ None Game ------ Seed StormGravityWings Manual? 0 Play Time 00:55:21 Cumulative 15.3 hours Start 2024.04.10 @ 17:52:48 End 2024.04.10 @ 18:56:11 Sessions 1 Manual Loads 0 Difficulty Rogue Special Mode None Game No. 34 Rogue 34 Adventurer 0 Explorer 0 Win Type - Total 0 Types 0/0/0/0/0/0/0/0/0 Lore% 17 Gallery% 19 Achievement% 17 Wizard Run 0 Options --------- Layout 1 ASCII 0 Keyboard 1 Movement Numpad Keybinds 0 Fullscreen 1 Font 24/Smallcaps Map View 50x35 Zoom Use 0% Tactical HUD 1 Map Filters NONE Filters NONE Steam 1 RUN: b55b68a7-0152-441c-a7a2-e9ac85899fca